bitfinex/quotes_SOLUSD_20250306
["timestamp","ask_amount","ask_price","bid_price","bid_amount"]
[1741248603392,93.4,149.2,149.16,0.42648471]
[1741248603561,93.4,149.2,149.15,6.08]
[1741248603562,78.3,149.19,149.15,6.08]
[1741248603890,18.64964886,149.17,149.11,17.22866462]
[1741248604071,18.64964886,149.17,149.11,0.033]
[1741248604072,93.4,149.16,149.11,0.033]
[1741248604257,112.04964886,149.15,149.11,0.0001]
[1741248604461,18.64964886,149.13,149.11,0.0001]
[1741248604678,112.04964886,149.12,149.11,0.0001]
[1741248604858,18.64964886,149.12,149.09,0.0001]
[1741248605059,18.64964886,149.1,149.09,0.0001]
[1741248605280,18.64964886,149.1,149.09,312.14226157]
[1741248605591,20.0,149.07,149.0,27.11233705]
[1741248605771,2.6834,149.06,148.99,27.11233705]
[1741248606092,2.6834,149.06,149.02,0.14216157]
[1741248606699,18.64964886,149.05,148.97,27.11233705]
[1741248606892,20.0,149.02,148.97,27.11233705]
[1741248607277,18.64964886,149.01,148.94,27.3585794]
[1741248607482,18.64964886,149.01,148.94,0.24624235]
[1741248608100,18.64964886,149.01,148.95,0.14216157]
[1741248608291,18.64964886,149.01,148.94,0.24624235]
[1741248608489,18.64964886,149.01,148.95,0.14216157]
[1741248608688,20.0,148.98,148.94,0.24624235]
[1741248608893,20.0,148.98,148.94,0.033]
[1741248609196,15.1,148.97,148.94,0.033]
[1741248609582,15.1,148.97,148.96,0.14216157]
[1741248610104,17.7851,148.97,148.94,0.033]
[1741248610494,15.1,148.97,148.94,0.033]
[1741248611383,17.7851,148.97,148.94,0.033]
[1741248611792,15.1,148.97,148.94,0.033]
[1741248612300,15.1,148.96,148.94,27.28749862]
[1741248612611,6.5995,148.99,148.94,0.17516157]
[1741248612612,95.9,148.97,148.94,0.17516157]
[1741248612783,80.8,148.97,148.95,27.68098333]
[1741248612979,80.8,148.97,148.96,339.68098333]
[1741248613188,15.1,149.0,148.97,0.56864628]
[1741248613500,15.1,149.03,149.0,0.14216157]
[1741248613679,80.8,149.02,149.01,27.68098333]
[1741248614688,80.8,149.02,149.01,0.14216157]
[1741248615902,20.0,149.02,149.01,0.14216157]
[1741248616086,2.6838,149.04,149.01,0.14216157]
[1741248616402,2.6833,149.07,148.99,0.42648471]
[1741248616709,18.64964886,149.05,149.04,0.14216157]
[1741248617089,18.64964886,149.05,149.0,0.14216157]
[1741248617284,18.64964886,149.05,148.98,27.11233705]
[1741248617285,95.9,149.04,148.97,27.11233705]
[1741248617490,2.6833,149.07,148.98,27.11233705]
[1741248617491,95.9,149.03,148.98,27.11233705]
[1741248617687,95.9,149.02,148.99,0.56864628]
[1741248618003,95.9,149.02,148.99,27.68098333]
[1741248618213,95.4,149.04,149.01,0.56864628]
[1741248618412,80.8,149.03,149.01,0.56864628]
[1741248618910,80.8,149.03,149.02,27.68098333]
[1741248619116,80.8,149.06,149.03,0.56864628]
[1741248619288,80.8,149.06,149.05,0.56864628]
[1741248620112,80.8,149.06,149.05,312.56864628]
[1741248620313,80.8,149.06,149.05,312.14216157]
[1741248620707,80.8,149.06,149.05,312.56864628]
[1741248621025,80.8,149.06,149.05,346.39008333]
[1741248621201,94.9,149.13,149.07,0.14216157]
[1741248621527,94.9,149.12,149.1,0.14216157]
[1741248621719,80.8,149.11,149.1,0.14216157]
[1741248621902,14.1,149.13,149.1,0.14216157]
[1741248623316,14.1,149.13,149.01,12.9069]
[1741248623317,80.8,149.1,149.01,12.9069]
[1741248623613,80.8,149.09,149.01,6.14]
[1741248623795,80.8,149.08,149.05,0.14216157]
[1741248623995,80.8,149.07,149.05,0.14216157]
[1741248624395,80.8,149.07,149.06,312.14216157]
[1741248627004,21.33274886,149.08,149.06,312.0]
[1741248627213,21.33274886,149.08,149.07,0.14216157]
[1741248627627,14.6,149.07,149.0,27.14533705]
[1741248627798,14.6,149.06,149.0,27.14533705]
[1741248628117,14.6,149.06,149.02,0.14216157]
[1741248628329,17.2835,149.06,149.02,0.14216157]
[1741248628706,17.2835,149.06,149.01,0.56864628]
[1741248629821,17.2835,149.06,149.01,27.68098333]
[1741248630227,17.2835,149.06,149.03,0.14216157]
[1741248630516,17.2837,149.05,149.03,0.14216157]
[1741248630715,17.2837,149.05,149.04,312.14216157]
[1741248631025,14.6,149.05,149.04,312.14216157]
[1741248631227,95.4,149.05,149.04,0.14216157]
[1741248631731,98.0836,149.05,149.04,0.14216157]
[1741248632921,95.4,149.05,149.04,0.14216157]
[1741248633296,2.6834,149.06,149.05,0.14216157]
[1741248633512,2.6834,149.06,149.02,0.14216157]
[1741248633712,2.6834,149.06,149.02,27.25449862]
[1741248634326,2.6834,149.06,149.05,312.14216157]
[1741248637544,2.6834,149.06,149.05,0.14216157]
[1741248637823,28.04174886,149.06,149.01,0.14216157]
[1741248638217,80.8,149.04,149.0,0.17516157]
[1741248638409,95.4,149.03,149.0,27.28749862]
[1741248638613,95.4,149.03,149.02,312.14216157]
[1741248638811,98.084,149.03,149.02,312.14216157]
[1741248639010,98.084,149.03,149.02,312.0]
[1741248639614,98.084,149.03,149.0,0.033]
[1741248639615,95.4,149.02,149.0,0.033]
[1741248640535,114.04964886,149.02,149.01,0.14216157]
[1741248640845,2.6843,149.01,149.0,312.033]
[1741248641044,2.6843,149.01,149.0,312.17516157]
[1741248642317,6.71,149.03,149.01,0.14216157]
[1741248642521,9.394,149.03,149.01,0.14216157]
[1741248644041,9.394,149.03,149.0,0.033]
[1741248644635,80.8,149.02,149.01,27.25449862]
[1741248645732,80.8,149.02,149.01,27.68098333]
[1741248646145,14.6,149.04,149.02,0.14216157]
[1741248646338,14.6,149.04,149.02,27.25449862]
[1741248646529,14.6,149.04,149.03,0.14216157]
[1741248646846,80.8,149.04,149.03,0.14216157]
[1741248647024,80.8,149.04,149.03,312.14216157]
[1741248648331,80.8,149.04,149.03,339.25449862]
[1741248648715,83.4838,149.04,149.03,312.14216157]
[1741248648919,80.8,149.04,149.03,312.14216157]
[1741248650421,83.5138,149.04,149.03,312.14216157]
[1741248651130,2.7138,149.04,149.03,312.14216157]
[1741248655473,2.7138,149.04,149.03,0.14216157]
[1741248656777,21.36344886,149.04,149.03,0.14216157]
[1741248656964,21.36344886,149.04,148.95,12.8335]
[1741248656965,18.64964886,149.02,148.93,1.6111]
[1741248657278,18.64964886,149.0,148.92,17.16226247]
[1741248657450,18.64964886,149.0,148.93,0.14216157]
[1741248657846,14.6,149.01,148.97,0.14216157]
[1741248658177,14.6,149.0,148.97,0.14216157]
[1741248658543,14.6,149.0,148.97,312.14216157]
[1741248658953,2.6847,148.99,148.97,312.14216157]
[1741248659246,17.2847,148.99,148.97,312.14216157]
[1741248659889,17.2847,148.99,148.97,0.14216157]
[1741248660061,17.2847,148.99,148.96,27.13899439]
[1741248660392,17.2847,148.99,148.98,0.14216157]
[1741248660393,14.6,148.99,148.98,0.14216157]
[1741248660798,14.6,148.99,148.94,27.17199439]
[1741248661003,14.6,148.99,148.94,0.033]
[1741248661004,9.3978,148.97,148.94,0.033]
[1741248662784,2.6851,148.97,148.95,0.14216157]
[1741248663212,2.6851,148.97,148.95,27.28115596]
[1741248663364,2.6851,148.97,148.95,0.14216157]
[1741248663974,2.6851,148.97,148.94,0.17516157]
[1741248664591,2.6851,148.97,148.95,0.14216157]
[1741248665468,2.6851,148.97,148.94,0.17516157]
[1741248666064,2.6854,148.95,148.94,0.17516157]
[1741248666277,14.6,148.97,148.94,339.31415596]
[1741248666481,17.2851,148.97,148.94,339.31415596]
[1741248666785,17.2851,148.97,148.94,27.31415596]
[1741248667494,17.2851,148.97,148.94,0.17516157]
[1741248668898,17.2851,148.97,148.94,0.033]
[1741248668899,23.9978,148.97,148.94,0.033]
[1741248669299,18.64964886,148.95,148.94,0.033]
[1741248669898,18.64964886,148.96,148.94,312.033]
[1741248670098,14.6,148.95,148.93,0.14216157]
[1741248670307,21.33524886,148.94,148.9,0.14216157]
[1741248670592,21.33524886,148.94,148.89,0.033]
[1741248670593,14.6,148.93,148.89,27.17199439]
[1741248670802,14.6,148.93,148.92,0.14216157]
[1741248670974,14.6,148.93,148.92,27.28115596]
[1741248671300,14.6,148.95,148.93,0.14216157]
[1741248671474,16.6138,148.97,148.93,0.14216157]
[1741248671682,18.64964886,148.96,148.91,0.14216157]
[1741248672181,18.64964886,148.96,148.9,0.14216157]
[1741248672392,16.614,148.95,148.9,0.14216157]
[1741248672594,16.614,148.95,148.89,0.033]
[1741248672595,33.24964886,148.94,148.89,0.033]
[1741248672796,33.24964886,148.94,148.89,27.17199439]
[1741248673093,14.6,148.94,148.92,0.14216157]
[1741248673300,95.4,148.94,148.92,0.14216157]
[1741248674897,97.4142,148.94,148.9,0.14216157]
[1741248675094,97.4142,148.94,148.9,27.28115596]
[1741248675294,95.4,148.94,148.92,0.14216157]
[1741248676487,95.4,148.94,148.92,312.14216157]
[1741248676815,80.8,148.93,148.92,339.28115596]
[1741248677020,14.6,148.95,148.93,0.14216157]
[1741248677300,14.6,148.95,148.93,27.28115596]
[1741248678211,14.6,148.95,148.94,27.28115596]
[1741248678604,14.6,148.95,148.94,17.10840318]
[1741248679098,95.4,148.97,148.95,0.14216157]
[1741248679300,80.8,148.96,148.95,0.14216157]
[1741248679491,14.6,148.98,148.95,0.14216157]
[1741248679800,14.6,148.98,148.97,17.10840318]
[1741248680102,14.6,148.98,148.97,329.10840318]
[1741248680301,14.6,148.98,148.97,312.14216157]
[1741248680605,16.6136,148.98,148.97,312.14216157]
[1741248681300,22.0136,148.98,148.97,312.14216157]
[1741248681495,18.64964886,148.97,148.92,16.96624161]
[1741248681699,20.0,148.93,148.9,16.96624161]
[1741248681887,20.0,148.93,148.89,0.033]
[1741248682287,14.6,148.92,148.89,0.033]
[1741248682988,14.6,148.92,148.89,0.17516157]
[1741248683183,16.6145,148.92,148.89,0.033]
[1741248683394,14.6,148.92,148.89,27.3471351]
[1741248683786,14.6,148.92,148.91,0.17516157]
[1741248683992,14.6,148.92,148.91,27.3471351]
[1741248684194,14.6,148.92,148.91,0.17516157]
[1741248684506,14.6,148.92,148.91,312.17516157]
[1741248684806,80.8,148.92,148.91,339.77361981]
[1741248684985,80.8,148.92,148.91,27.77361981]
[1741248685517,80.8,148.92,148.91,27.3471351]
[1741248685738,82.8145,148.92,148.91,0.17516157]
[1741248686001,82.8145,148.92,148.91,0.033]
[1741248686907,80.8,148.92,148.91,0.033]
[1741248687608,80.8,148.92,148.91,0.17516157]
[1741248687994,80.8,148.92,148.91,312.17516157]
[1741248688314,80.8,148.92,148.91,339.3471351]
[1741248689929,14.6,148.94,148.91,339.3471351]
[1741248690216,14.6,148.94,148.93,0.14216157]
[1741248691699,14.6,148.94,148.91,27.20497353]
[1741248692015,16.6142,148.94,148.91,0.17516157]
[1741248693115,16.6142,148.94,148.91,339.3471351]
[1741248693816,14.6,148.94,148.93,27.17197353]
[1741248694115,14.6,148.94,148.93,27.3141351]
[1741248695414,14.6,148.94,148.93,27.74061981]
[1741248696528,14.6,148.94,148.93,27.3141351]
[1741248696908,14.6,148.94,148.93,339.3141351]
[1741248697614,16.6142,148.94,148.93,339.3141351]
[1741248698436,2.0142,148.94,148.91,0.033]
[1741248698726,7.0497,148.94,148.91,0.033]
[1741248699123,80.8,148.93,148.91,0.033]
[1741248700133,2.0145,148.92,148.91,0.17516157]
[1741248701320,2.0145,148.92,148.91,312.17516157]
[1741248701715,22.0145,148.92,148.91,312.17516157]
[1741248705646,22.0145,148.92,148.91,0.033]
[1741248707623,40.66414886,148.92,148.91,0.0001]
[1741248708246,18.64964886,148.91,148.89,0.0001]
[1741248709225,7.0507,148.92,148.89,0.0001]
[1741248709226,10.42185298,148.92,148.89,0.0001]
[1741248710219,2.0145,148.92,148.89,0.14226157]
[1741248710451,2.0145,148.92,148.9,0.14216157]
[1741248711922,95.4,148.91,148.9,0.14216157]
[1741248712140,14.6,148.92,148.91,0.14216157]
[1741248712342,14.6,148.92,148.91,17.12155546]
[1741248713325,14.6,148.92,148.91,329.12155546]
[1741248713855,14.6,148.92,148.91,17.12155546]
[1741248714054,7.0502,148.93,148.89,0.0001]
[1741248714541,20.0,148.9,148.89,0.0001]
[1741248714740,20.0,148.9,148.89,0.14226157]
[1741248715045,20.0,148.9,148.89,17.12165546]
[1741248715953,7.0502,148.93,148.89,17.12165546]
[1741248716556,5.0359,148.93,148.89,17.12165546]
[1741248716939,5.0359,148.93,148.89,329.12165546]
[1741248717454,5.0359,148.93,148.89,17.12165546]
[1741248718234,80.8,148.92,148.91,0.14216157]
[1741248718558,80.8,148.92,148.91,17.12155546]
[1741248718753,97.4145,148.92,148.91,17.12155546]
[1741248718948,97.4145,148.92,148.91,0.14216157]
[1741248719655,97.4145,148.92,148.9,0.14216157]
[1741248720049,97.4145,148.92,148.89,0.0001]
[1741248720357,102.4507,148.92,148.9,0.14216157]
[1741248720768,95.4,148.91,148.89,0.0001]
[1741248720972,95.4,148.9,148.89,0.0001]
[1741248721166,20.0,148.9,148.89,0.0001]
[1741248722965,22.0147,148.9,148.89,0.0001]
[1741248723769,2.0147,148.9,148.89,0.14216157]
[1741248725250,18.64964886,148.91,148.89,0.14216157]
[1741248725454,14.6,148.9,148.89,0.14216157]
[1741248726974,14.6,148.9,148.88,0.033]
[1741248727358,22.0149,148.89,148.88,0.033]
[1741248729882,22.0149,148.89,148.88,312.17516157]
[1741248731883,5.0662,148.92,148.89,0.14216157]
[1741248732057,2.0146,148.91,148.89,0.14216157]
[1741248732961,2.0146,148.91,148.88,0.17516157]
[1741248733162,0.03,148.92,148.88,0.17516157]
[1741248735209,2.0445,148.92,148.9,0.14216157]
[1741248735568,20.0,148.91,148.9,0.14216157]
[1741248736908,95.4,148.9,148.88,0.033]
[1741248737300,2.0149,148.89,148.88,0.033]
[1741248738009,2.0149,148.89,148.88,0.17516157]
[1741248738330,2.0149,148.89,148.88,0.0001]
[1741248739012,2.0149,148.89,148.83,0.033]
[1741248739013,20.0,148.86,148.83,0.033]
[1741248739177,20.0,148.86,148.81,0.033]
[1741248739178,114.04964886,148.85,148.81,0.033]
[1741248739378,18.64964886,148.83,148.81,0.0001]
[1741248739614,18.64964886,148.81,148.78,0.033]
[1741248739910,95.4,148.8,148.78,0.033]
[1741248740289,82.8162,148.79,148.78,0.033]
[1741248740603,80.8,148.79,148.78,0.033]
[1741248741119,80.8,148.79,148.78,17.15455546]
[1741248741415,80.8,148.79,148.78,329.15455546]
[1741248742136,80.8,148.79,148.78,0.17516157]
[1741248743441,95.4,148.85,148.79,0.56864628]
[1741248743601,80.8,148.85,148.84,17.12155546]
[1741248745145,95.4,148.89,148.85,0.56864628]
[1741248745311,80.8,148.88,148.85,0.56864628]
[1741248745513,95.4,148.91,148.88,0.14216157]
[1741248745713,95.4,148.9,148.88,0.14216157]
[1741248746112,95.4,148.9,148.87,0.14216157]
[1741248746323,95.4,148.9,148.87,17.12155546]
[1741248748412,95.4,148.9,148.89,0.14216157]
[1741248748615,80.8,148.9,148.89,17.54804017]
[1741248749131,18.64964886,148.9,148.82,1.5472]
[1741248749339,18.64964886,148.9,148.81,16.97939389]
[1741248749340,95.4,148.89,148.81,16.97939389]
[1741248749512,95.4,148.89,148.84,0.14216157]
[1741248750373,95.4,148.89,148.88,0.033]
[1741248750536,18.64964886,148.9,148.88,0.033]
[1741248750740,20.69444886,148.9,148.88,0.033]
[1741248752963,20.0,148.89,148.88,0.033]
[1741248754236,0.03,148.9,148.88,0.033]
[1741248754443,0.03,148.9,148.89,0.14216157]
[1741248755043,0.03,148.9,148.89,312.14216157]
[1741248757241,0.03,148.9,148.89,329.12155546]
[1741248757654,0.03,148.9,148.89,312.14216157]
[1741248758153,0.03,148.9,148.89,312.0]
[1741248758560,0.03,148.9,148.89,329.12155546]
[1741248758959,0.03,148.9,148.89,17.54804017]
[1741248761473,0.03,148.9,148.89,24.26434017]
[1741248762048,0.03,148.9,148.89,329.54804017]
[1741248764561,0.03,148.9,148.89,329.4058786]
[1741248766164,0.03,148.9,148.89,329.54804017]
[1741248768750,0.03,148.9,148.89,336.26434017]
[1741248768975,0.03,148.9,148.89,354.91398903]
[1741248769353,0.03,148.9,148.89,348.19768903]
[1741248769665,0.03,148.9,148.89,329.26371703]
[1741248769863,0.03,148.9,148.89,312.0]
[1741248770062,0.03,148.9,148.88,0.033]
[1741248770274,0.03,148.9,148.89,17.12155546]
[1741248770464,0.03,148.9,148.89,16.97939389]
[1741248770880,0.03,148.9,148.88,0.033]
[1741248771049,0.03,148.9,148.89,0.14216157]
[1741248771254,0.03,148.9,148.89,17.12155546]
[1741248772975,0.03,148.9,148.89,329.12155546]
[1741248775908,0.03,148.9,148.89,17.12155546]
[1741248776787,0.03,148.9,148.88,0.033]
[1741248777289,95.4,148.89,148.88,0.033]
[1741248777477,18.64964886,148.87,148.81,0.033]
[1741248777678,6.2797,148.85,148.81,0.033]
[1741248778074,2.0155,148.84,148.81,0.033]
[1741248778390,80.8,148.85,148.83,16.97939389]
[1741248778578,82.8154,148.85,148.84,0.14216157]
[1741248778900,2.0154,148.85,148.84,312.14216157]
[1741248779393,2.0151,148.87,148.84,312.14216157]
[1741248779594,2.0151,148.87,148.84,329.12155546]
[1741248781088,2.0151,148.87,148.84,312.14216157]
[1741248781286,80.8,148.84,148.81,0.033]
[1741248781598,80.8,148.83,148.81,0.033]
[1741248781903,80.8,148.82,148.81,0.033]
[1741248782070,80.8,148.82,148.81,0.17516157]
[1741248782695,80.8,148.82,148.81,17.15455546]
[1741248782901,80.8,148.82,148.81,0.17516157]
[1741248783199,80.8,148.82,148.81,17.58104017]
[1741248784169,80.8,148.82,148.81,329.58104017]
[1741248784798,95.4,148.87,148.82,0.14216157]
[1741248784998,80.8,148.86,148.85,17.12155546]
[1741248785169,2.0152,148.87,148.84,16.97939389]
[1741248785370,2.0152,148.87,148.83,16.97939389]
[1741248785697,2.0152,148.87,148.82,0.14216157]
[1741248785698,80.8,148.85,148.82,0.14216157]
[1741248785889,95.4,148.84,148.81,0.033]
[1741248786088,95.4,148.83,148.81,0.033]
[1741248786388,101.9438,148.82,148.78,0.033]
[1741248786575,95.4,148.81,148.78,0.033]
[1741248786768,2.0161,148.8,148.78,0.033]
[1741248786973,95.4,148.79,148.78,0.033]
[1741248787200,14.6,148.79,148.78,17.15455546]
[1741248787889,14.6,148.79,148.78,329.15455546]
[1741248788080,2.0159,148.82,148.78,329.58104017]
[1741248788284,80.8,148.81,148.8,17.12155546]
[1741248788698,95.4,148.85,148.8,17.54804017]
[1741248789021,80.8,148.84,148.83,0.14216157]
[1741248789176,14.6,148.85,148.83,0.14216157]
[1741248789381,16.6154,148.85,148.83,0.14216157]
[1741248789982,14.6,148.87,148.85,0.14216157]
[1741248790188,14.6,148.89,148.87,0.14216157]
[1741248790385,2.0447,148.9,148.87,17.12155546]
[1741248790692,0.03,148.9,148.87,17.54804017]
[1741248790906,0.03,148.9,148.87,23.62804017]
[1741248791211,0.03,148.9,148.87,30.34524017]
[1741248791409,0.03,148.9,148.87,342.34524017]
[1741248791929,0.03,148.9,148.89,0.14216157]
[1741248792086,0.03,148.9,148.89,17.54804017]
[1741248792288,0.03,148.9,148.89,36.19768903]
[1741248792501,0.03,148.92,148.91,27.71007832]
[1741248792891,0.03,148.92,148.91,34.42547832]
[1741248793092,0.03,148.92,148.91,27.71007832]
[1741248793406,0.03,148.92,148.87,0.28432314]
[1741248793598,0.03,148.92,148.89,27.42575518]
[1741248795104,2.0445,148.92,148.91,312.14216157]
[1741248796513,2.0445,148.92,148.91,312.0]
[1741248796712,18.64964886,148.91,148.84,27.14143204]
[1741248796901,95.4,148.9,148.84,0.42648471]
[1741248797099,95.4,148.9,148.84,27.56791675]
[1741248797305,2.0149,148.89,148.84,27.56791675]
[1741248797502,95.4,148.88,148.84,27.56791675]
[1741248797815,80.8,148.87,148.83,27.14143204]
[1741248798016,80.8,148.86,148.83,0.14216157]
[1741248798198,95.4,148.85,148.79,27.14143204]
[1741248798416,95.4,148.84,148.79,27.14143204]
[1741248798713,80.8,148.84,148.8,0.56864628]
[1741248798919,80.8,148.83,148.8,0.56864628]
[1741248799219,97.4158,148.82,148.78,0.033]
[1741248799394,95.4,148.87,148.79,27.14143204]
[1741248799595,18.64964886,148.85,148.79,339.14143204]
[1741248799795,95.4,148.84,148.8,0.14216157]
[1741248800500,95.4,148.84,148.78,27.17443204]
[1741248800823,95.4,148.83,148.78,0.033]
[1741248801201,97.4158,148.83,148.78,27.17443204]
[1741248801401,97.4158,148.83,148.79,0.14216157]
[1741248801631,80.8,148.82,148.8,27.14143204]
[1741248801807,80.8,148.82,148.81,0.14216157]
[1741248803319,80.8,148.82,148.81,339.71007832]
[1741248805222,82.8158,148.82,148.81,312.14216157]
[1741248805403,82.8158,148.82,148.81,312.0]
[1741248805825,2.0158,148.82,148.81,312.14216157]
[1741248806620,14.6,148.84,148.82,0.14216157]
[1741248806826,2.0157,148.83,148.82,0.14216157]
[1741248809113,14.6,148.84,148.81,27.71007832]
[1741248809418,14.6,148.84,148.83,0.14216157]
[1741248809817,16.6156,148.84,148.82,0.14216157]
[1741248810407,16.6156,148.84,148.8,0.14216157]
[1741248810605,14.6,148.83,148.8,0.14216157]
[1741248810807,2.0158,148.82,148.8,27.28359361]
[1741248812224,2.0158,148.82,148.81,312.14216157]
[1741248814125,2.0158,148.82,148.81,0.14216157]
[1741248814718,2.0158,148.82,148.78,0.033]
[1741248814719,14.6,148.81,148.76,0.033]
[1741248815020,18.64964886,148.79,148.76,0.033]
[1741248815535,18.64964886,148.77,148.74,0.033]
[1741248815731,14.6,148.77,148.74,0.033]
[1741248816533,14.6,148.77,148.74,0.17516157]
[1741248816928,2.0166,148.76,148.74,0.033]
[1741248817129,2.0166,148.76,148.74,312.033]
[1741248817529,20.66624886,148.76,148.75,0.14216157]
[1741248818232,20.66624886,148.76,148.74,312.033]
[1741248818442,20.66624886,148.76,148.75,0.14216157]
[1741248818619,14.6,148.77,148.75,0.14216157]
[1741248818826,16.6165,148.77,148.75,0.14216157]
[1741248819640,80.8,148.76,148.75,0.14216157]
[1741248819841,80.8,148.76,148.75,27.79400872]
[1741248820841,80.8,148.76,148.75,34.51660872]
[1741248821346,80.8,148.81,148.76,0.56864628]
[1741248821525,80.8,148.8,148.79,0.56864628]
[1741248821727,95.4,148.85,148.81,0.14216157]
[1741248821921,95.4,148.84,148.83,0.14216157]
[1741248822324,80.8,148.84,148.83,27.79400872]
[1741248822825,80.8,148.86,148.83,339.79400872]
[1741248823049,80.8,148.86,148.85,0.14216157]
[1741248824337,80.8,148.86,148.85,0.56864628]
[1741248824962,80.8,148.86,148.85,27.79400872]
[1741248826246,80.8,148.86,148.85,339.79400872]
[1741248826972,2.0446,148.91,148.87,0.56864628]
[1741248826973,0.03,148.91,148.87,0.56864628]
[1741248827134,0.03,148.91,148.9,27.22536244]
[1741248827337,0.03,148.91,148.9,33.91400872]
[1741248828156,2.0446,148.91,148.9,6.26216157]
[1741248828362,0.03,148.91,148.9,0.14216157]
[1741248829049,20.03,148.91,148.9,0.14216157]
[1741248829355,20.03,148.91,148.86,27.36752401]
[1741248829558,80.8,148.9,148.86,27.36752401]
[1741248829858,80.8,148.9,148.87,0.28432314]
[1741248830037,80.8,148.9,148.89,0.14216157]
[1741248830244,2.0147,148.9,148.89,0.14216157]
[1741248830734,2.0147,148.9,148.86,0.14216157]
[1741248830946,95.4,148.89,148.85,6.12]
[1741248831461,95.4,148.89,148.86,0.14216157]
[1741248832361,2.015,148.88,148.86,0.14216157]
[1741248833653,2.015,148.88,148.87,312.14216157]
[1741248833879,2.015,148.88,148.87,312.0]
[1741248834170,7.0526,148.88,148.82,27.43860479]
[1741248834344,2.0153,148.86,148.83,0.42648471]
[1741248834969,2.0153,148.86,148.83,27.65184715]
[1741248835272,82.8152,148.87,148.85,0.56864628]
[1741248836168,80.8,148.87,148.85,0.56864628]
[1741248836374,82.8152,148.87,148.85,0.56864628]
[1741248836941,82.8152,148.87,148.86,312.14216157]
[1741248837578,82.8452,148.87,148.86,312.14216157]
[1741248838456,2.0452,148.87,148.86,312.14216157]
[1741248838856,2.0452,148.87,148.86,0.14216157]
[1741248839252,2.0452,148.87,148.83,27.22536244]
[1741248839675,2.0452,148.87,148.84,0.14216157]
[1741248839978,2.0452,148.87,148.84,27.79400872]
[1741248841296,2.0452,148.87,148.84,0.14216157]
[1741248841480,2.0452,148.87,148.82,0.21324235]
[1741248841775,95.4,148.86,148.85,0.14216157]
[1741248842083,14.6,148.86,148.85,0.14216157]
[1741248842283,14.6,148.86,148.83,0.14216157]
[1741248842685,2.0154,148.85,148.83,0.14216157]
[1741248843357,80.8,148.84,148.83,0.14216157]
[1741248843551,14.6,148.84,148.81,0.14216157]
[1741248843778,14.6,148.84,148.78,27.22536244]
[1741248843975,80.8,148.83,148.79,0.14216157]
[1741248844184,80.8,148.83,148.8,0.28432314]
[1741248844569,82.8158,148.83,148.81,0.14216157]
[1741248844894,80.8,148.82,148.81,0.14216157]
[1741248845184,80.8,148.82,148.81,27.65184715]
[1741248845391,80.8,148.82,148.81,339.65184715]
[1741248849284,80.8,148.82,148.81,312.42648471]
[1741248850390,80.8,148.82,148.81,312.56864628]
[1741248851110,80.8,148.82,148.81,339.79400872]
[1741248851410,80.8,148.82,148.81,346.51390872]
[1741248852333,80.8,148.82,148.81,339.79400872]
[1741248854018,80.8,148.82,148.81,346.51390872]
[1741248856218,0.03,148.87,148.83,0.14216157]
[1741248856415,80.8,148.86,148.85,0.14216157]
[1741248856610,80.8,148.86,148.85,17.12954905]
[1741248857135,0.03,148.87,148.86,0.56864628]
[1741248857439,0.03,148.87,148.86,17.55603376]
[1741248858725,0.03,148.87,148.86,24.27373376]
[1741248859355,0.03,148.87,148.86,336.27373376]
[1741248859510,0.03,148.87,148.86,371.9107701]
[1741248859949,0.03,148.91,148.89,0.56864628]
[1741248860244,0.03,148.91,148.9,17.55603376]
[1741248860612,0.03,148.91,148.9,24.27193376]